Cogmind - Beta 15 @@@ ROGUE MODE // 2025.07.12 @ 20:16:04 Player: the Result: Destroyed by H-77 Assassin with High-powered Shotgun Performance ------------- Evolutions (6) 3000 Regions Visited (14) 2800 Robots Destroyed (269) 1345 Value Destroyed (9532) 9532 Prototype IDs (25) 500 Alien Tech Used (0) 0 Bonus (1145) 1145 TOTAL SCORE: 18322 Bonus ------- High Alert Combat Kills 459 Follower Combat Kills 486 Entered Garrisons 200 Cogmind --------- Core Integrity 0/1150 Matter 174/300 Energy 27/100 System Corruption 0% Temperature Cool (9) Movement Core (50) Location -4/Factory Parts ------- > --- POWER (2) -------- (None) > --- PROPULSION (6) --- (None) > --- UTILITY (7) ------ (None) > --- WEAPON (4) ------- (None) > --- INVENTORY (5) ---- Fission Core Advanced Cryofiber Web Improved Coolant Injector Advanced Transmission Jammer Wave Gun Peak State ------------ > --- POWER ------------ Reinforced Quantum Reactor > --- PROPULSION ------- Multireflex Exoskeleton Multireflex Exoskeleton Enhanced Armored Leg Enhanced Armored Leg > --- UTILITY ---------- Large Storage Unit Advanced Sensor Array Advanced Signal Interpreter Core Analyzer Layered Medium Armor Plating Graphene Brace > --- WEAPON ----------- Phasing Sabre Phasing Sabre Centrium Greatsword > --- INVENTORY -------- Light Antimatter Reactor Carbon-fiber Leg Flexi-carbon Leg Myomer Leg Improved Coolant Injector Advanced Melee Analysis Suite Advanced Transmission Jammer Improved Medium Armor Plating Improved Recalibrator Ion Burst Cannon Advanced Plasma Cannon Mini Smartbomb Launcher Phasing Sabre Lance [Rating: 110] Favorites ----------- Power Enhanced Fission Core Engine Cooled Ion Engine Power Core Enhanced Fission Core Reactor Reinforced Quantum Reactor Propulsion Wheel Treads Improved Heavy Treads Leg Multireflex Exoskeleton Wheel Wheel Hover Unit Aerolev Unit Utility Huge Storage Unit Device Seismic Detector Storage Huge Storage Unit Processor Core Analyzer Protection Layered Medium Armor Plating Weapon Cooled Plasma Rifle Energy Gun Cooled Plasma Rifle Energy Cannon Heavy Particle Cannon Ballistic Gun Light Assault Rifle Ballistic Cannon Mini Assault Cannon Launcher Proton Missile Launcher Special Weapon Mining Laser Impact Weapon Great Maul Slashing Weapon Centrium Greatsword Piercing Weapon Lance Build | -11 -10 -9 -9 -8 -8 -7 -7 -7 -6 -5 -5 -5 -5 -4 ------- Run | Yrd Mat Mat Min Mat Sto Fac Gar Fac Fac Fac Was Fac Ext Fac Slots Evolved 12 | . . 2 . 2 . 2 . . 2 2 . . . 2 Power 1 | . . . . . . . . . . . . . . 1 Propulsion 4 | . . . . 1 . 1 . . 1 1 . . . . Utility 5 | . . 2 . . . 1 . . . 1 . . . 1 Weapon 2 | . . . . 1 . . . . 1 . . . . . Parts Attached 190 | 7 10 26 2 12 19 30 15 20 18 7 . 6 7 11 Power 19 | 1 1 3 1 1 1 2 . 3 2 . . 2 1 1 Engine 13 | 1 1 3 1 1 1 2 . 1 1 . . 1 . . Core 4 | . . . . . . . . 2 1 . . 1 . . Reactor 2 | . . . . . . . . . . . . . 1 1 Propulsion 41 | 2 2 6 . 1 10 3 3 4 4 2 . . 2 2 Treads 8 | 2 . . . . . . 3 3 . . . . . . Leg 11 | . . . . . . . . 1 4 2 . . 2 2 Wheel 21 | . 2 6 . 1 9 3 . . . . . . . . Hover 1 | . . . . . 1 . . . . . . . . . Flight . | . . . . . . . . . . . . . . . Utility 67 | 2 4 7 . 8 4 10 7 7 7 5 . 2 . 4 Device 38 | 1 1 1 . 4 2 9 5 4 4 3 . 2 . 2 Storage 7 | 1 2 . . 1 . 1 . 1 1 . . . . . Processor 7 | . . 2 . 2 . . . . 1 1 . . . 1 Hackware . | . . . . . . . . . . . . . . . Protection 15 | . 1 4 . 1 2 . 2 2 1 1 . . . 1 Artifact . | . . . . . . . . . . . . . . . Weapon 63 | 2 3 10 1 2 4 15 5 6 5 . . 2 4 4 Energy Gun 36 | . 3 7 1 1 3 10 2 4 3 . . . . 2 Energy Cannon 5 | . . . . 1 . 1 . . 1 . . 1 . 1 Ballistic Gun 3 | 2 . . . . 1 . . . . . . . . . Ballistic Cannon 4 | . . . . . . 3 1 . . . . . . . Launcher 5 | . . 2 . . . . 2 1 . . . . . . Special Weapon 1 | . . 1 . . . . . . . . . . . . Impact Weapon 1 | . . . . . . 1 . . . . . . . . Slashing Weapon 7 | . . . . . . . . 1 1 . . 1 3 1 Piercing Weapon 1 | . . . . . . . . . . . . . 1 . Special Melee Weapon . | . . . . . . . . . . . . . . . Unidentified Prototypes 20 | . . . . . 3 4 . 7 3 1 . . . 2 Corrupted Parts 1 | . 1 . . . . . . . . . . . . . System Corruption 8 | . 8 . . . . . . . . . . . . . Parts Lost 40 | . 1 5 . 1 5 2 . 7 . . 1 . 11 7 Power 4 | . . . . 1 1 . . 1 . . . . 1 . Propulsion 11 | . . 2 . . . . . 2 . . . . 3 4 Utility 15 | . . 2 . . 3 2 . 3 . . . . 4 1 Weapon 10 | . 1 1 . . 1 . . 1 . . 1 . 3 2 Highest Loss Streak 7 | . 1 1 . 1 3 1 . 7 . . 1 . 7 7 To Critical Strikes . | . . . . . . . . . . . . . . . Average Backups 20 | 3 9 23 25 24 24 24 21 19 18 12 12 12 14 5 Power 2 | . 1 3 3 2 3 3 3 2 1 2 2 1 . . Propulsion 1 | 2 1 1 2 1 1 . 1 2 1 1 1 1 2 . Utility 9 | . 3 8 8 12 13 13 12 8 7 5 6 6 6 2 Weapon 6 | . 3 10 11 8 7 7 5 4 6 3 3 3 4 2 Tool/Special . | . . . . . . . . . . . . . . . Unused Backups 68 | 2 2 17 2 5 7 11 6 3 9 . . . 3 1 Power 13 | . . 2 1 1 2 4 2 . . . . . . 1 Propulsion 8 | 2 . 3 . . . . . 2 . . . . 1 . Utility 23 | . 2 4 1 2 2 2 3 . 5 . . . 2 . Weapon 24 | . . 8 . 2 3 5 1 1 4 . . . . . Tool/Special . | . . . . . . . . . . . . . . . Average Slot Usage (%) 87 | . 100 99 100 99 99 93 76 71 82 86 84 80 80 36 Engine 6 | . 14 11 11 9 8 7 7 4 . . . 3 . . Core 1 | . . . . . . . . 2 5 5 4 1 . . Treads 4 | . 21 . . . . . 6 14 10 . . . . . Leg 4 | . . . . . . . . . 7 21 22 23 22 10 Wheel 12 | . 6 21 22 27 26 24 12 . . . . . . . Device 15 | . 12 18 11 17 13 18 9 20 16 15 17 16 11 4 Storage 7 | . 14 11 11 9 9 7 7 7 6 5 5 5 5 2 Processor 7 | . . 8 11 8 9 7 7 7 6 9 11 11 11 6 Protection 3 | . 1 5 11 . 4 3 6 2 2 2 . . 4 1 Energy Gun 14 | . 13 20 22 22 19 14 5 6 21 16 14 3 . . Energy Cannon 1 | . . . . 4 7 . . . . 5 5 1 . . Ballistic Cannon 1 | . . . . . . 7 5 . . . . . . . Slashing Weapon 1 | . . . . . . . . 2 2 . . 6 16 4 Peak Build Rating 110 | 7 10 23 23 30 33 51 86 94 105 103 103 106 110 103 Average Rating 56 | 5 8 16 22 26 28 43 71 82 95 100 98 104 104 41 On Entrance 52 | . 7 10 22 23 27 28 51 86 88 86 103 83 106 67 Naked Turns 91 | . . . . . . . . . . . . . . 91 Heaviest Build 161 | 13 90 101 101 99 106 115 142 161 135 74 59 55 74 85 Greatest Support 150 | 40 40 22 22 32 48 54 150 150 150 107 107 107 112 100 Greatest Overweight (x) 9 | . 4 9 4 3 3 2 4 1 1 . . . 1 1 Average Overweight (x) 1 | . 1 4 4 2 2 1 1 . . . . . . . Largest Inventory Capacity 25 | 8 25 25 25 25 25 25 25 25 25 15 15 15 15 15 Average Capacity 22 | 7 12 25 25 25 25 25 25 25 22 15 15 15 15 8 Most Carried 25 | 7 16 25 25 25 25 25 25 25 25 15 15 15 15 10 Average Carried 21 | 3 9 23 24 24 24 24 24 24 22 14 14 13 14 5 Final Capacity 25 | 8 25 25 25 25 25 25 25 25 15 15 15 15 15 5 Final Carried 25 | 5 16 25 25 25 25 25 25 25 15 15 14 15 11 5 Class Distribution -------------------- 22% | Gunner 19% | Scavenger-Mutant 12% | Mutant 8% | Scavenger-Tank 6% | Scavenger-Gunner 5% | Pyromaniac-Tank 4% | Commander-Gladiator 4% | Gladiator 4% | Tank 4% | Skirmisher 3% | Commander-Gunner Dominant Class ---------------- Mutant | -10/Materials Scavenger-Mutant | -9/Materials Mutant | -9/Mines Gunner | -8/Materials Gunner | -8/Storage Gunner | -7/Factory Gunner | -7/Garrison Scavenger-Tank | -7/Factory Pyromaniac-Tank | -6/Factory Skirmisher | -5/Factory Skirmisher | -5/Waste Gladiator | -5/Factory Commander-Gladiator | -5/Extension Mutant | -4/Factory Resources | -11 -10 -9 -9 -8 -8 -7 -7 -7 -6 -5 -5 -5 -5 -4 ----------- Run | Yrd Mat Mat Min Mat Sto Fac Gar Fac Fac Fac Was Fac Ext Fac Matter Collected 4938 | 290 212 626 52 160 410 994 552 451 454 300 . 225 143 69 Remotely . | . . . . . . . . . . . . . . . Salvage Created 11070 | 129 210 1292 169 178 1514 1229 1089 686 1741 1162 . 332 1102 237 Parts 574 | 6 13 84 9 6 88 68 61 49 60 49 . 17 48 16 Haulers Intercepted 21 | . 1 4 . 2 6 3 . . 3 1 . . . 1 Recyclers Shooed 9 | . . 2 1 . . 1 . 3 1 1 . . . . Parts Field Recycled 45 | . . . . . . . . 45 . . . . . . Retrieved Matter 336 | . . . . . . . . 336 . . . . . . Parts Self-Destructed . | . . . . . . . . . . . . . . . Prevented . | . . . . . . . . . . . . . . . Kills | -11 -10 -9 -9 -8 -8 -7 -7 -7 -6 -5 -5 -5 -5 -4 ------- Run | Yrd Mat Mat Min Mat Sto Fac Gar Fac Fac Fac Was Fac Ext Fac Combat Hostiles Destroyed 169 | . 3 21 2 1 20 18 21 21 16 18 . 8 13 7 Melee 23 | . . . . . . . . 2 2 . . 5 13 1 Guns 67 | . 3 15 2 1 9 6 2 12 10 6 . . . 1 Cannons 41 | . . . . . 10 9 10 7 . 5 . . . . AOE 31 | . . 4 . . . 1 9 . 2 7 . 3 . 5 Classes Destroyed 19 | 2 3 4 . . 2 2 6 . . . . . . . Worker 18 | . . 6 . . 5 2 . . 1 2 . . . 2 Builder 16 | . 1 4 . . 2 1 . 1 1 3 . 2 1 . Tunneler 8 | 2 . 1 1 . . 1 . 1 1 1 . . . . Hauler 21 | . 1 4 . 2 6 3 . . 3 1 . . . 1 Recycler 15 | 1 . 2 1 1 1 1 . 1 3 3 . . 1 . Mechanic 1 | . . . . . . 1 . . . . . . . . Operator 3 | . . . . . 2 . . 1 . . . . . . Watcher 17 | . . 5 . . 2 4 1 3 1 . . . . 1 Swarmer 33 | . . 7 . . . . 8 6 . 5 . 2 . 5 Grunt 65 | . 3 9 . . 12 11 6 2 2 9 . 4 5 2 Brawler 3 | . . . . . 1 . . . . 1 . 1 . . Duelist 1 | . . . . . . . 1 . . . . . . . Protector 2 | . . . . . . . 1 1 . . . . . . Sentry 31 | . . 5 2 1 8 4 . 1 1 1 . . 8 . Demolisher 1 | . . . . . . . 1 . . . . . . . Specialist 7 | . . . . . . . 2 3 2 . . . . . Hunter 12 | . . . . . . . 1 5 5 . . 1 . . Programmer 13 | . . . . . . 3 . 3 5 2 . . . . Heavy 2 | . . . . . . . 1 . 1 . . . . . Best Kill Streak 8 | 3 2 6 3 2 4 4 5 7 3 8 . 6 4 6 Combat Bots Only 6 | . 1 6 2 1 3 3 5 6 3 5 . 4 4 4 Max Kills in Single Turn 5 | 1 1 2 1 1 2 2 3 1 3 3 . 4 2 5 Gunslinging 1 | . . . . . . . . . 1 . . . . . Exploded 3 | . . 2 . . . 1 3 . 2 3 . 3 . 2 Melee 2 | . . . . . . . . 1 1 . . 1 2 1 Uniques/NPCs Destroyed . | . . . . . . . . . . . . . . . Combat | -11 -10 -9 -9 -8 -8 -7 -7 -7 -6 -5 -5 -5 -5 -4 -------- Run | Yrd Mat Mat Min Mat Sto Fac Gar Fac Fac Fac Was Fac Ext Fac Hostile Shots Fired 1172 | . 26 83 4 4 106 88 65 299 64 43 3 67 141 179 Missed 353 | . 9 23 . . 31 35 22 67 16 15 . 16 47 72 Deflected 1 | . . . . . . . . . . . . . 1 . Hits 819 | . 17 60 4 4 75 53 43 232 48 28 3 51 94 107 Melee 5 | . . . . . . . 1 . . . 3 1 . . Projectile 814 | . 17 60 4 4 75 53 42 232 48 28 . 50 94 107 Critical Strikes 25 | . . 1 . . 6 . 1 1 3 2 . 1 5 5 Actively Blocked 3 | . . . . . . . . . . . . . 2 1 Part Disruptions 2 | . . . . . . 1 . . 1 . . . . . Damage Taken 13034 | . 276 925 59 113 1104 544 827 2398 775 554 140 952 2175 2192 Core 2535 | . 89 203 . 16 206 31 95 133 116 38 47 85 325 1151 Absorbed by Shields 277 | . . . . . . 31 . 47 . . . . . 199 Reduced by Siege Mode 131 | . . . . . . . 24 107 . . . . . . Redirected to Shielding 7 | . 7 . . . . . . . . . . . . . Ignored by Resistances 910 | . . . . . 74 . . 736 100 . . . . . Regen/Repaired (Parts) 134 | . . 25 . . 71 38 . . . . . . . . Core Remaining (%) 67 | 100 64 . 49 . 59 . . 63 86 . . . 50 . Volleys Fired 507 | 10 21 121 5 8 65 57 91 25 48 40 8 2 . 6 Largest 4 | 2 2 2 2 3 3 3 3 2 4 4 4 1 . 2 Hottest 319 | 40 100 130 130 205 205 240 165 106 288 319 319 80 . 162 Shots Fired 1088 | 20 43 220 10 20 181 158 101 64 131 105 26 2 . 7 Gun 824 | 20 43 202 10 18 126 81 53 41 131 75 21 . . 3 Cannon 224 | . . . . 2 55 77 40 21 . 24 5 . . . Launcher 24 | . . 2 . . . . 8 2 . 6 . 2 . 4 Special 16 | . . 16 . . . . . . . . . . . . Kinetic 167 | 20 12 . . . . 74 40 21 . . . . . . Thermal 819 | . 19 218 10 20 181 30 41 41 131 99 26 . . 3 Explosive 24 | . . 2 . . . . 8 2 . 6 . 2 . 4 Electromagnetic 78 | . 12 . . . . 54 12 . . . . . . . Robot Hit Streak 28 | 2 6 16 12 17 12 15 28 7 20 13 7 . . 1 Robot Miss Streak 11 | 2 3 5 3 2 7 6 4 11 2 5 3 . . 2 Penetration Max . | . . . . . . . . . . . . . . . Secondary Targets 3 | . . 1 . . . . . . 1 . . . . 1 Max Gunslinging Chain 1 | . . 1 . . . . . . 1 . . . . 1 Autonomous 35 | . . . . . . . . 35 . . . . . . Shots Hit Robots 745 | 11 26 135 9 13 120 97 66 56 79 57 15 13 46 2 Core Hits 583 | 6 13 76 15 14 146 54 55 45 29 78 4 21 17 10 Critical Kills 2 | 1 . . . . 1 . . . . . . . . . Critical Parts Destroyed . | . . . . . . . . . . . . . . . Critical Strikes 56 | 1 2 11 . . 6 2 5 2 10 1 . 2 13 1 Burn 33 | . 1 11 . . 5 . 4 1 10 1 . . . . Meltdown 1 | . . . . . 1 . . . . . . . . . Destroy 1 | 1 . . . . . . . . . . . . . . Blast 2 | . . . . . . 1 1 . . . . . . . Corrupt 2 | . 1 . . . . 1 . . . . . . . . Sever 16 | . . . . . . . . 1 . . . 2 13 . Impale 1 | . . . . . . . . . . . . . . 1 Melee Attacks 123 | . . . . . . 8 . 19 5 . . 22 62 7 Impact 8 | . . . . . . 8 . . . . . . . . Slashing 108 | . . . . . . . . 19 5 . . 22 59 3 Piercing 7 | . . . . . . . . . . . . . 3 4 Sneak Attacks 7 | . . . . . . 1 . 4 . . . . 2 . Combat Hostiles . | . . . . . . . . . . . . . . . Follow-up Attacks 14 | . . . . . . . . . 1 . . . 13 . Damage Inflicted 27892 | 83 342 2084 136 199 2327 2692 3389 4320 2998 3009 675 1401 2898 1339 Guns 11082 | 83 300 1822 136 199 1448 1154 874 1117 2392 1068 466 . . 23 Cannons 6192 | . . . . . 716 1305 1672 1422 . 868 209 . . . Explosions 5534 | . 42 262 . . 163 146 843 826 383 1073 . 528 . 1268 Melee 5081 | . . . . . . 87 . 952 223 . . 873 2898 48 Ramming 3 | . . . . . . . . 3 . . . . . . Kinetic 4451 | 83 59 . . . . 1215 1672 1422 . . . . . . Thermal 13168 | . 179 1822 136 199 2164 629 787 1117 2675 1936 675 . . 849 Explosive 4237 | . . 262 . . 163 . 843 826 100 1073 . 528 . 442 Electromagnetic 952 | . 104 . . . . 761 87 . . . . . . . Impact 87 | . . . . . . 87 . . . . . . . . Slashing 4867 | . . . . . . . . 952 223 . . 873 2819 . Piercing 127 | . . . . . . . . . . . . . 79 48 Highest Corruption 19 | . 8 . . 1 . 1 1 2 2 1 19 19 16 . Average Corruption 5 | . 8 . . 1 . 1 1 1 1 1 9 18 14 . Corruption Purged 8 | . . . . 2 . . 1 . . . . 3 2 . Corruption Blocked . | . . . . . . . . . . . . . . . Effects 99 | . 6 . . 2 . 4 6 8 6 1 11 15 40 . Message Errors 25 | . . . . . . 1 2 1 1 . 2 1 17 . Matter Fused 27 | . 3 . . . . . 2 2 . 1 3 6 10 . Heat Flow Errors 12 | . 1 . . 1 . 1 . 3 . . . 1 5 . Energy Discharges 11 | . 1 . . 1 . . 1 2 1 . . 4 1 . Parts Rejected 3 | . . . . . . 1 . . . . 1 1 . . Data Loss (minor) 12 | . . . . . . . 1 . 2 . 1 2 6 . Data Loss (major) 1 | . . . . . . . . . 1 . . . . . Misfires 2 | . 1 . . . . 1 . . . . . . . . Alerts 2 | . . . . . . . . . . . 1 . 1 . Misdirections 3 | . . . . . . . . . . . 3 . . . Weapon Failures 1 | . . . . . . . . . 1 . . . . . Overload Shots 71 | . . . . . . . . . 43 12 16 . . . Effects 4 | . . . . . . . . . 2 2 . . . . Energy Bleed 2 | . . . . . . . . . 1 1 . . . . Heat Surge 2 | . . . . . . . . . 1 1 . . . . Overflow Damage 1257 | . . 23 . . 45 98 205 436 120 26 . 41 74 189 Projectiles 368 | . . . . . 8 33 205 120 . 2 . . . . Explosions 304 | . . 23 . . 37 . . . 120 24 . . . 100 Melee 585 | . . . . . . 65 . 316 . . . 41 74 89 Knockbacks 30 | . . . . . . 13 7 10 . . . . . . Impact . | . . . . . . . . . . . . . . . Kinetic 27 | . . . . . . 11 7 9 . . . . . . Secondary 3 | . . . . . . 2 . 1 . . . . . . Self-Inflicted Damage 571 | . . . . . 37 . 36 31 148 . . 58 . 261 Shots 11 | . . . . . 1 . 1 1 3 . . 2 . 3 Rammed 1 | . . . . . . . . 1 . . . . . . Targets Rammed 1 | . . . . . . . . 1 . . . . . . Kicked . | . . . . . . . . . . . . . . . Crushed . | . . . . . . . . . . . . . . . Highest Temperature 516 | . 211 108 60 138 516 380 135 367 467 100 188 127 242 149 Average Temperature 74 | . 54 29 31 56 102 93 36 81 157 17 95 71 93 66 Received Heat Transfer 2867 | . 135 291 18 18 729 185 153 213 78 225 . 216 546 60 Effects 3 | . . . . . 2 . . 1 . . . . . . Shutdowns 1 | . . . . . . . . 1 . . . . . . Energy Bleed 1 | . . . . . 1 . . . . . . . . . Matter Decay 1 | . . . . . 1 . . . . . . . . . Siege Activations 5 | . . . . . . . 2 3 . . . . . . Total Turns 70 | . . . . . . . 27 43 . . . . . . Longest Duration 30 | . . . . . . . 14 30 . . . . . . Martial Activations 3 | . . . . . . . . . . . . . 3 . Total Turns 33 | . . . . . . . . . . . . . 33 . Longest Duration 29 | . . . . . . . . . . . . . 29 . Shielding Activations . | . . . . . . . . . . . . . . . Robots Disrupted . | . . . . . . . . . . . . . . . Combat Hostiles . | . . . . . . . . . . . . . . . Robots Corrupted 3 | . . . . . . 3 . . . . . . . . Combat Hostiles 2 | . . . . . . 2 . . . . . . . . Parts Fried 3 | . . . . . . 3 . . . . . . . . Impact Corruptions 2 | . . . . . . 2 . . . . . . . . Robots Melted 7 | . . 2 . . 1 . . . 4 . . . . . Combat Hostiles 5 | . . 2 . . 1 . . . 2 . . . . . Parts Melted 66 | . 1 15 . . 7 4 4 . 29 5 . . . 1 Heat Transferred 24085 | . 531 5556 165 362 3744 1086 1665 1014 5720 2735 920 . . 587 Parts Sabotaged . | . . . . . . . . . . . . . . . Parts Stolen . | . . . . . . . . . . . . . . . Parts Stripped . | . . . . . . . . . . . . . . . Power Chain Reactions 3 | . 1 . . . . 2 . . . . . . . . Alert | -11 -10 -9 -9 -8 -8 -7 -7 -7 -6 -5 -5 -5 -5 -4 ------- Run | Yrd Mat Mat Min Mat Sto Fac Gar Fac Fac Fac Was Fac Ext Fac Maximum Alert Level 3 | . . 1 . . 2 1 3 2 2 2 1 . . 2 Low Security (%) 63 | 100 100 90 100 100 41 92 7 14 52 . 62 100 100 23 Level 1 22 | . . 9 . . 10 7 28 83 30 64 37 . . 13 Level 2 12 | . . . . . 47 . 39 1 17 35 . . . 62 Level 3 1 | . . . . . . . 24 . . . . . . . Level 4 . | . . . . . . . . . . . . . . . Level 5 . | . . . . . . . . . . . . . . . High Security . | . . . . . . . . . . . . . . . Max Security . | . . . . . . . . . . . . . . . Peak Influence 900 | 10 71 228 65 30 611 255 900 472 523 663 229 178 113 486 Initial 472 | . . 1 65 . . 255 143 472 170 249 229 88 72 . Average 191 | 1 14 102 18 2 336 86 524 293 212 359 184 115 38 331 Influence Increases 7053 | 15 159 720 50 65 1280 629 757 646 793 636 8 220 405 670 Destroy 0b10 Robot/C 3620 | . 60 420 40 20 660 360 400 400 320 360 . 160 280 140 Destroy 0b10 Robot/NC 530 | 15 10 110 10 15 90 65 35 40 50 50 . 10 10 20 Destroy Leader 852 | . 22 118 . 14 196 124 30 86 126 72 . 20 30 14 Allied During Kill 289 | . . . . . 230 . . . . . . . 59 . Successful Hack 278 | . 44 36 . . 28 25 26 71 12 . . 12 24 . Disable Machine 630 | . . . . 15 45 . 75 15 195 30 . . . 255 Anti-Garrison Action 100 | . . . . . . . 100 . . . . . . . Destroy Structure 484 | . 8 36 . 1 31 25 61 34 60 94 8 18 2 106 Partial Spotted 15 | . . . . . . . . . 15 . . . . . Lose Combat Pursuer 255 | . 15 . . . . 30 30 . 15 30 . . . 135 Influence Decreases 6577 | 15 153 557 219 65 718 986 62 1198 631 491 536 199 553 194 Entered New Map 1886 | . . 5 104 . . 307 62 428 178 261 426 39 76 . Time Decay 3841 | 15 143 502 115 65 508 509 . 550 453 230 100 160 367 124 Lost Part 313 | . 10 50 . . 50 20 . 70 . . 10 . 33 70 Lost Ally 237 | . . . . . 160 . . . . . . . 77 . Purge Threat 300 | . . . . . . 150 . 150 . . . . . . Squads Dispatched 47 | . . 2 . . 5 7 . 9 8 6 . 1 3 6 Investigation 10 | . . 2 . . 1 1 . . 1 . . 1 3 1 Extermination 12 | . . . . . . 3 . 3 4 1 . . . 1 Reinforcement 20 | . . . . . 4 2 . 3 3 5 . . . 3 Assault . | . . . . . . . . . . . . . . . Garrison 5 | . . . . . . 1 . 3 . . . . . 1 Intercept . | . . . . . . . . . . . . . . . Searches Triggered . | . . . . . . . . . . . . . . . Construction Impeded 5 | . . . . . 2 . . 1 . 2 . . . . Haulers Reinforced 2 | . . . . . . . . 1 . 1 . . . . Active Scanning Responses . | . . . . . . . . . . . . . . . Cargo Convoy Interrupts 1 | . . . . . . . . 1 . . . . . . Stealth | -11 -10 -9 -9 -8 -8 -7 -7 -7 -6 -5 -5 -5 -5 -4 --------- Run | Yrd Mat Mat Min Mat Sto Fac Gar Fac Fac Fac Was Fac Ext Fac Distress Signals 10 | . . . . . 1 2 . 1 1 3 . . 2 . Communications Jammed 34 | . . . . . 17 . 8 9 . . . . . . Distress Signals 33 | . . . . . 16 . 8 9 . . . . . . Times Spotted 272 | . 8 28 2 1 34 28 24 39 21 23 6 8 24 26 Peak Tracking Total 12 | . 2 4 2 1 7 4 5 12 3 5 6 5 8 9 Tactical Retreats 12 | . 1 . . . . 2 2 . 1 1 1 . . 4 Traps | -11 -10 -9 -9 -8 -8 -7 -7 -7 -6 -5 -5 -5 -5 -4 ------- Run | Yrd Mat Mat Min Mat Sto Fac Gar Fac Fac Fac Was Fac Ext Fac Traps Triggered 17 | . 1 4 . 1 . 1 . . 2 1 . 1 3 3 Indirectly . | . . . . . . . . . . . . . . . Trap Hack Attempts . | . . . . . . . . . . . . . . . Triggered . | . . . . . . . . . . . . . . . Disarmed . | . . . . . . . . . . . . . . . Reprogrammed . | . . . . . . . . . . . . . . . Reused . | . . . . . . . . . . . . . . . Traps Extracted . | . . . . . . . . . . . . . . . Installed . | . . . . . . . . . . . . . . . Triggered . | . . . . . . . . . . . . . . . Machines | -11 -10 -9 -9 -8 -8 -7 -7 -7 -6 -5 -5 -5 -5 -4 ---------- Run | Yrd Mat Mat Min Mat Sto Fac Gar Fac Fac Fac Was Fac Ext Fac Machines Disabled 45 | . . . . 1 3 . 8 1 13 2 . . . 17 Max in Single Turn 17 | . . . . 1 1 . 1 1 9 1 . . . 17 Garrison Access 1 | . . . . . . . . . . 1 . . . . Garrison Relay 2 | . . . . . . . 2 . . . . . . . Machines Repaired . | . . . . . . . . . . . . . . . Machines Dismantled . | . . . . . . . . . . . . . . . Machines Sabotaged . | . . . . . . . . . . . . . . . Overloaded Fab Kills . | . . . . . . . . . . . . . . . Hacking | -11 -10 -9 -9 -8 -8 -7 -7 -7 -6 -5 -5 -5 -5 -4 --------- Run | Yrd Mat Mat Min Mat Sto Fac Gar Fac Fac Fac Was Fac Ext Fac Machines Accessed 91 | . 5 12 . 4 11 16 3 13 11 4 . 3 9 . Terminals 55 | . 5 8 . 4 8 5 3 7 4 1 . 2 8 . Fabricators 6 | . . . . . . 3 . 1 2 . . . . . Repair Stations 8 | . . 1 . . 1 3 . . 2 1 . . . . Recycling Units 10 | . . 1 . . 2 3 . 1 1 1 . . 1 . Scanalyzers 8 | . . 2 . . . 1 . 2 2 . . 1 . . Garrison Access 4 | . . . . . . 1 . 2 . 1 . . . . Total Hacks 213 | . 19 40 . 10 26 31 7 26 18 6 . 7 23 . Successful 91 | . 11 20 . 1 12 13 3 11 6 3 . 2 9 . Failed 121 | . 8 20 . 9 14 18 4 15 12 3 . 5 13 . Catastrophic 23 | . 2 1 . 1 1 6 1 3 1 . . . 7 . Database Lockouts 1 | . . . . . . . . . . . . . 1 . Manual 53 | . 11 18 . . 4 7 2 3 3 2 . 2 1 . Terminals 147 | . 19 31 . 10 18 15 7 13 7 2 . 4 21 . Fabricators 6 | . . . . . . 3 . 1 2 . . . . . Repair Stations 17 | . . 2 . . 4 7 . . 3 1 . . . . Recycling Units 16 | . . 1 . . 4 4 . 1 2 2 . . 2 . Scanalyzers 21 | . . 6 . . . 1 . 7 4 . . 3 . . Garrison Access 6 | . . . . . . 1 . 4 . 1 . . . . Terminal Hacks 43 | . 7 7 . 1 8 4 2 4 1 . . 1 8 . Record 3 | . . . . . . . . . . . . . 3 . Part Schematic 4 | . . . . . 1 . . 1 1 . . . 1 . Robot Analysis 4 | . . 1 . 1 1 1 . . . . . . . . Prototype ID Bank 2 | . . 1 . . 1 . . . . . . . . . Open Door 5 | . . . . . 2 . . . . . . 1 2 . Branch Access Points 2 | . 1 1 . . . . . . . . . . . . Terminal Index 1 | . 1 . . . . . . . . . . . . . Alert Level 5 | . . 1 . . 2 1 . 1 . . . . . . Unreport Threat 2 | . . . . . . 1 . 1 . . . . . . Locate Traps 1 | . 1 . . . . . . . . . . . . . Hauler Manifests 2 | . 2 . . . . . . . . . . . . . Registered Components 2 | . 1 1 . . . . . . . . . . . . Registered Prototypes 1 | . 1 . . . . . . . . . . . . . Zone Layout 7 | . . 2 . . 1 1 . 1 . . . . 2 . Garrison Registry 1 | . . . . . . . 1 . . . . . . . Security Stations 1 | . . . . . . . 1 . . . . . . . Fabricator Hacks 1 | . . . . . . . . . 1 . . . . . Network Status 1 | . . . . . . . . . 1 . . . . . Repair Station Hacks 10 | . . 2 . . 3 5 . . . . . . . . Scan Component 6 | . . 1 . . 2 3 . . . . . . . . Repair 4 | . . 1 . . 1 2 . . . . . . . . Recycling Unit Hacks 4 | . . 1 . . 1 . . . 1 1 . . . . Report Inventory 1 | . . 1 . . . . . . . . . . . . Retrieve Components 3 | . . . . . 1 . . . 1 1 . . . . Scanalyzer 14 | . . 6 . . . . . 5 2 . . 1 . . Insert Component 8 | . . 3 . . . . . 3 1 . . 1 . . Analyze 6 | . . 3 . . . . . 2 1 . . . . . Garrison Access Hacks 3 | . . . . . . 1 . 1 . 1 . . . . Unlock Access 2 | . . . . . . 1 . 1 . . . . . . Seal Access 1 | . . . . . . . . . . 1 . . . . Unauthorized Hacks 16 | . 4 4 . . . 3 1 1 1 1 . . 1 . Terminals 16 | . 4 4 . . . 3 1 1 1 1 . . 1 . Assimilate 2 | . 2 . . . . . . . . . . . . . Botnet 11 | . 1 3 . . . 2 1 1 1 1 . . 1 . Operators 3 | . 1 1 . . . 1 . . . . . . . . Fabricators . | . . . . . . . . . . . . . . . Repair Stations . | . . . . . . . . . . . . . . . Recycling Units . | . . . . . . . . . . . . . . . Scanalyzers . | . . . . . . . . . . . . . . . Garrison Access . | . . . . . . . . . . . . . . . Data Cores Recovered 2 | . . . . . 1 . . 1 . . . . . . Used . | . . . . . . . . . . . . . . . Hacking Detections 79 | . 5 10 . 4 11 13 2 13 10 2 . 2 7 . Full Trace Events 10 | . 1 1 . 1 1 1 . . 1 . . 1 3 . Feedback Events 1 | . . . . 1 . . . . . . . . . . Corruption 1 | . . . . 1 . . . . . . . . . . Feedback Blocked . | . . . . . . . . . . . . . . . Robot Schematics Acquired . | . . . . . . . . . . . . . . . Robots Built . | . . . . . . . . . . . . . . . Authchips . | . . . . . . . . . . . . . . . Time . | . . . . . . . . . . . . . . . Total Robot Build Rating . | . . . . . . . . . . . . . . . Part Schematics Acquired 8 | . . 3 . . 1 . . 2 1 . . . 1 . Parts Built . | . . . . . . . . . . . . . . . Authchips . | . . . . . . . . . . . . . . . Time . | . . . . . . . . . . . . . . . Total Part Build Rating . | . . . . . . . . . . . . . . . Parts Repaired 4 | . . 1 . . 1 2 . . . . . . . . Time 187 | . . 38 . . 38 111 . . . . . . . . Parts Recycled . | . . . . . . . . . . . . . . . Recycled Matter . | . . . . . . . . . . . . . . . Retrieved Matter . | . . . . . . . . . . . . . . . Retrieved Components 11 | . . . . . 9 . . . 1 1 . . . . Parts Scanalyzed 6 | . . 3 . . . . . 3 . . . . . . Part Schematics Acquired 4 | . . 3 . . . . . 1 . . . . . . Parts Damaged 1 | . . . . . . . . 1 . . . . . . Bothacking | -11 -10 -9 -9 -8 -8 -7 -7 -7 -6 -5 -5 -5 -5 -4 ------------ Run | Yrd Mat Mat Min Mat Sto Fac Gar Fac Fac Fac Was Fac Ext Fac Used RIF Installer . | . . . . . . . . . . . . . . . Robots Hacked . | . . . . . . . . . . . . . . . Non-combat . | . . . . . . . . . . . . . . . Combat . | . . . . . . . . . . . . . . . Robot Hacks Applied . | . . . . . . . . . . . . . . . Relay Couplers Released 12 | . . . . . . . 8 . 4 . . . . . Machine Destruction 8 | . . . . . . . 8 . . . . . . . Programmers 4 | . . . . . . . . . 4 . . . . . Fabnet Peak Effective % . | . . . . . . . . . . . . . . . Robots Rewired 11 | . . . . . . . . . . . . . 11 . Allies Hacked . | . . . . . . . . . . . . . . . Hacks Repelled . | . . . . . . . . . . . . . . . Allies | -11 -10 -9 -9 -8 -8 -7 -7 -7 -6 -5 -5 -5 -5 -4 -------- Run | Yrd Mat Mat Min Mat Sto Fac Gar Fac Fac Fac Was Fac Ext Fac Total Allies 23 | . 1 . . . 10 . . . . . . . 12 . Largest Group 10 | . 1 1 . . 10 . . . . . . . 8 . Highest-Rated Group 197 | . 10 10 . . 173 . . . . . . . 197 . Highest-Rated Ally 39 | . 10 10 . . 29 . . . . . . . 39 . Initial Warlord ECA Mod 23 | . . . . . . . . 5 4 3 3 3 3 2 Total Orders . | . . . . . . . . . . . . . . . Ally Attacks 121 | . . . . . 88 . . . . . . . 33 . Total Damage 1732 | . . . . . 1074 . . . . . . . 658 . Kills 15 | . . . . . 14 . . . . . . . 1 . Allies Corrupted . | . . . . . . . . . . . . . . . Allies Melted . | . . . . . . . . . . . . . . . Intel | -11 -10 -9 -9 -8 -8 -7 -7 -7 -6 -5 -5 -5 -5 -4 ------- Run | Yrd Mat Mat Min Mat Sto Fac Gar Fac Fac Fac Was Fac Ext Fac Active Infowar (turns) 9802 | 66 363 1595 . 566 698 1736 54 1267 1637 423 139 276 982 . Sensors 1707 | . . . . . . . . . . 310 139 276 982 . Seismic 7912 | 66 363 1595 . 566 590 1736 . 1247 1636 113 . . . . Jamming 1593 | . . . . . 108 467 54 375 589 . . . . . Robot Analysis Total 4 | . . 1 . 1 1 1 . . . . . . . . Derelict Logs Recovered 1 | . . . 1 . . . . . . . . . . . Drone Launches . | . . . . . . . . . . . . . . . Drone Recoveries . | . . . . . . . . . . . . . . . Exploration | -11 -10 -9 -9 -8 -8 -7 -7 -7 -6 -5 -5 -5 -5 -4 ------------- Run | Yrd Mat Mat Min Mat Sto Fac Gar Fac Fac Fac Was Fac Ext Fac Turns Passed 14078 | 133 625 2123 374 658 1470 1991 1077 1588 1698 495 216 326 997 307 Spaces Moved 7740 | 60 326 974 234 425 790 1147 552 788 915 294 157 205 501 372 Core 304 | 7 . . . . . . . . . . . . . 297 Treads 1970 | 53 234 . . . . . 242 788 653 . . . . . Legs 1494 | . . . . . . . . . 262 294 157 205 501 75 Wheels 3972 | . 92 974 234 425 790 1147 310 . . . . . . . Hover . | . . . . . . . . . . . . . . . Flight . | . . . . . . . . . . . . . . . Fastest Speed 50 | 50 140 140 145 113 113 108 123 160 103 103 103 107 107 50 Average Speed 130 | 147 154 141 145 125 127 116 139 160 146 106 106 107 116 64 Slowest Speed 240 | 160 160 215 145 128 130 130 160 240 183 107 107 107 232 190 Overloaded Moves 4 | . . . . . . . . . . . . . 4 . Propulsion Burnouts . | . . . . . . . . . . . . . . . Robots Hopped . | . . . . . . . . . . . . . . . Potential Cave-ins . | . . . . . . . . . . . . . . . Cave-ins Triggered . | . . . . . . . . . . . . . . . Exploration Rate (%) 40 | 4 37 70 51 26 96 30 65 20 32 10 89 6 52 15 Regions Visited 14 Branch Regions 3 Pre-discovered Areas . | . . . . . . . . . . . . . . . Known Exits Taken 6 | . . 1 1 1 . 1 . . . . . 1 1 . Unknown Exits Taken 5 | 1 1 . . . 1 . . 1 1 . . . . . Scrap Searched . | . . . . . . . . . . . . . . . Spaces Dug 65 | . . 14 . . 2 7 6 6 14 10 2 1 1 2 Terrain Destroyed 372 | . 7 33 . 1 26 23 49 32 61 63 10 10 1 56 Melee 17 | . . . . . . 7 . 6 . . . 1 1 2 Projectile 115 | . . 16 . 1 17 8 7 21 22 13 10 . . . AOE 240 | . 7 17 . . 9 8 42 5 39 50 . 9 . 54 Terrain Rammed . | . . . . . . . . . . . . . . . Walls Destroyed . | . . . . . . . . . . . . . . . Machines Disabled . | . . . . . . . . . . . . . . . Actions | -11 -10 -9 -9 -8 -8 -7 -7 -7 -6 -5 -5 -5 -5 -4 --------- Run | Yrd Mat Mat Min Mat Sto Fac Gar Fac Fac Fac Was Fac Ext Fac Total 10657 | 86 411 1483 260 542 1116 1668 755 1035 1180 386 184 269 856 426 Wait 1393 | 1 26 265 10 61 185 328 50 121 124 32 18 18 148 6 Move 7727 | 59 325 973 233 424 789 1146 551 787 914 294 156 204 500 372 Hop . | . . . . . . . . . . . . . . . Pick Up 205 | 7 18 37 4 15 17 31 14 21 19 3 . 7 9 3 Fast Attach 59 | 7 2 7 . 3 3 9 5 8 4 2 1 2 2 4 Attach 76 | . 4 6 . 7 6 4 3 13 11 . 1 4 9 8 Detach 15 | . . . . 1 . 2 1 5 1 . . 1 1 3 Swap 192 | . 4 38 3 6 30 43 10 16 26 11 . 4 1 . Drop 231 | 2 11 36 5 17 21 40 30 19 30 4 . 5 6 5 Fire 507 | 10 21 121 5 8 65 57 91 25 48 40 8 2 . 6 Melee 98 | . . . . . . 8 . 19 3 . . 22 42 4 Ram . | . . . . . . . . . . . . . . . Kick . | . . . . . . . . . . . . . . . Crush 1 | . . . . . . . . 1 . . . . . . Escape Stasis 17 | . . . . . . . . . . . . . 2 15 Rewire 136 | . . . . . . . . . . . . . 136 . Trap . | . . . . . . . . . . . . . . . Miscellaneous . | . . . . . . . . . . . . . . . Route ------- -11/Scrapyard -10/Materials (discovered 2 exits: *Mat / Min) -9/Materials (discovered 2 exits: *Mat / *Min) -9/Mines (discovered 2 exits: *Mat / [*Zio]) -8/Materials -8/Storage (discovered 2 exits: *Fac / [*Rec]) -7/Factory (discovered 2 exits: *Fac / Gar) -7/Garrison (discovered 3 exits: *Fac x3) -7/Factory (discovered 2 exits: *Fac / Gar) -6/Factory (discovered 2 exits: *Fac / *Low) -5/Factory -5/Waste -5/Factory (discovered 2 exits: *Upp / *Ext) -5/Extension -4/Factory History --------- Turn | Location | Event 6 | -11/Scrapyard | Discovered new exit (range 15) 134 | -11/Scrapyard | Entered Materials 309 | -10/Materials | Identified exit to Mines 310 | -10/Materials | Build established: Mutant 480 | -10/Materials | Discovered new exit (range 7) 759 | -10/Materials | Entered another Materials area 759 | -9/Materials | Accompanied by 1 ally 759 | -9/Materials | Evolved 2 slots: Utility x2 1106 | -9/Materials | Identified exit to Mines 1535 | -9/Materials | Discovered new exit (range 9) 1634 | -9/Materials | Repaired Imp. Heat Sink 1706 | -9/Materials | Build established: Scavenger-Mutant 2820 | -9/Materials | Core integrity fell below 50% 2882 | -9/Materials | Entered Mines 2906 | -9/Mines | A Derelict revealed a hidden shortcut to a safe place 3031 | -9/Mines | Identified exit to Materials 3159 | -9/Mines | Build established: Mutant 3256 | -9/Mines | Entered Materials 3256 | -8/Materials | Evolved 2 slots: Propulsion x1, Weapon x1 3515 | -8/Materials | Discovered new exit (range 16) 3687 | -8/Materials | Identified exit to Storage 3815 | -8/Materials | Build established: Gunner 3914 | -8/Materials | Entered Storage 4370 | -8/Storage | Discovered new exit (range 7) 4514 | -8/Storage | Lost 3 parts (1p1u1w) 4528 | -8/Storage | Assisted by bots powering up and referring to "LRC-V3" 4581 | -8/Storage | Lost 3 allies 4730 | -8/Storage | Used back door to open Recycling access 4730 | -8/Storage | Discovered new exit (range 4) 4838 | -8/Storage | Build established: Commander-Gunner 4941 | -8/Storage | Repaired Hrd. Medium Armor Plating 5368 | -8/Storage | Build established: Gunner 5384 | -8/Storage | Entered Factory 5384 | -7/Factory | Evolved 2 slots: Propulsion x1, Utility x1 5775 | -7/Factory | Allied Derelicts emerged from ambush trap array 6161 | -7/Factory | Discovered new exit (range 10) 6240 | -7/Factory | Repaired Beamcaster 6548 | -7/Factory | Repaired Corrupted Gatling Laser 6889 | -7/Factory | Build established: Scavenger-Gunner 7365 | -7/Factory | Identified exit to Garrison 7375 | -7/Factory | Entered Garrison 7383 | -7/Garrison | Build established: Gunner 7405 | -7/Garrison | Learned Factory security intel 7425 | -7/Garrison | Triggered checkpoint 7451 | -7/Garrison | Garrison Relay disabled 7552 | -7/Garrison | Heavy support dispatched to Factory 7581 | -7/Garrison | H-XX Assembler disabled 7669 | -7/Garrison | Triggered checkpoint 7805 | -7/Garrison | Triggered checkpoint 7852 | -7/Garrison | Garrison Relay disabled 8080 | -7/Garrison | Discovered new exit (range 64) 8080 | -7/Garrison | Discovered new exit (range 44) 8080 | -7/Garrison | Discovered new exit (range 12) 8181 | -7/Garrison | Triggered checkpoint 8258 | -7/Garrison | Build established: Tank 8452 | -7/Garrison | Entered Factory 8579 | -7/Factory | Identified exit to Garrison 8768 | -7/Factory | Build established: Scavenger-Tank 9353 | -7/Factory | Cargo convoy interrupted 9424 | -7/Factory | Garrison activated, responded to threat 9449 | -7/Factory | Lost 7 parts (1p2n3u1w) 9490 | -7/Factory | Found Prototype Launcher 9490 | -7/Factory | Identified Mni. Smartbomb Launcher 9787 | -7/Factory | Build established: Scavenger-Mutant 9993 | -7/Factory | Discovered new exit (range 10) 10040 | -7/Factory | Entered another Factory area 10040 | -6/Factory | Evolved 2 slots: Propulsion x1, Weapon x1 10391 | -6/Factory | Discovered new exit (range 7) 10496 | -6/Factory | Identified exit to Lower Caves 10632 | -6/Factory | Build established: Pyromaniac-Tank 11668 | -6/Factory | Build established: Pyromaniac-Gunner 11729 | -6/Factory | Discovered new exit (range 10) 11738 | -6/Factory | Entered another Factory area 11738 | -5/Factory | Evolved 2 slots: Propulsion x1, Utility x1 12195 | -5/Factory | Build established: Skirmisher 12233 | -5/Factory | Sucked down chute 12233 | -5/Factory | Entered Waste 12248 | -5/Waste | EMP discharged 12289 | -5/Waste | Spotted C-40 Crusher 12343 | -5/Waste | Spotted C-40 Crusher 12348 | -5/Waste | EMP discharged 12348 | -5/Waste | System corruption reached 10% 12354 | -5/Waste | Crushed by Compactor (0 parts destroyed, 1 dropped) 12357 | -5/Waste | Spotted C-40 Crusher 12358 | -5/Waste | Spotted C-40 Crusher 12362 | -5/Waste | Crushed by Compactor (0 parts destroyed, 1 dropped) 12382 | -5/Waste | Spotted C-40 Crusher 12421 | -5/Waste | Spotted C-40 Crusher 12422 | -5/Waste | Discovered new exit (range 12) 12435 | -5/Waste | Crushed by Compactor (0 parts destroyed, 1 dropped) 12446 | -5/Waste | Identified exit to Factory 12448 | -5/Waste | EMP discharged 12449 | -5/Waste | Entered Factory 12721 | -5/Factory | Discovered new exit (range 7) 12731 | -5/Factory | Build established: Gladiator 12731 | -5/Factory | Identified exit to Upper Caves 12770 | -5/Factory | Discovered new exit (range 6) 12774 | -5/Factory | Identified exit to Extension 12775 | -5/Factory | Entered Extension 12943 | -5/Extension | Lost 3 allies 13166 | -5/Extension | Rescued a captive Derelict 13235 | -5/Extension | Central database locked down 13454 | -5/Extension | Build established: Commander-Gladiator 13730 | -5/Extension | Spotted B-75 Beast 13742 | -5/Extension | Spotted B-75 Beast 13770 | -5/Extension | Discovered new exit (range 3) 13771 | -5/Extension | Identified exit to Factory 13772 | -5/Extension | Entered Factory 13772 | -4/Factory | Evolved 2 slots: Power x1, Utility x1 13795 | -4/Factory | Lost 7 parts (2n3u2w) 13800 | -4/Factory | Lost 8 allies 13844 | -4/Factory | Garrison activated, responded to threat 13894 | -4/Factory | Released all parts (12) 13925 | -4/Factory | Lost 7 parts (4n1u2w) 13937 | -4/Factory | Core integrity fell below 50% 14075 | -4/Factory | Core integrity fell below 20% 14079 | -4/Factory | Destroyed by H-77 Assassin with High-powered Shotgun Last Messages --------------- summon reinforcements. 14019_ ALERT: Hostiles spotted, dispatching reinforcements to Terminal F017. 14019_ O-24 Administrator locks terminal. 14024_ Slug penetrates Wall. 14043_ ALERT: Suspicious intruders detected, dispatching Cutter reinforcements to area. 14056_ K-01 Serf cleans the DSF Access. 14059_ Penetrated by Slug. 14059_ K-01 Serf cleans the DSF Access. 14064_ S-27 Virus destroyed. 14064_ Switching to secondary target: S-27 Virus. 14069_ Dropped Wave Gun. 14073_ Slug penetrates Wall. 14073_ Penetrated by Slug. 14076_ Slug penetrates Wall. 14076_ Penetrated by Slug. 14076_ Slug penetrates Wall. 14079_ Penetrated by Slug. Map ----- +----------------------------------------------------+ | ?????????????????????????????????????????????????? | | ????????????????????????????????????###??????????? | | ???????????????????????????????????? ??????????? | | ???????????????????????????????????? ??????????? | | ???????????????????????????????????? ??????????? | | ????????????????????????????????????" ??????????? | | ??####+####?????????????????????????" ??????????? | | ??# #?????????????????????????" =#?????????? | | ??# ##????????????????????????" #?????????? | | ??# ????????????????????????? #?????????? | | ??# ?????????????????????????? +?????????? | | ??# ?????????????????????????? #?????????? | | ??# #?????????????????????????? #?????????? | | ??? ???????????????????????????# #?????????? | | ???# #???????????????????????????# #?????????? | | ???# #???????????????????????????# ####??????? | | ???# #???????????????????????????# #??????? | | ???# #???????????????????????????#### #??????? | | ???# #??????????????????????????????# #??????? | | ##?# #??????????????????????????????# ##?????? | | ### ###????????????????????????????# T#?????? | | # #????????????????????????????# #?????? | | # ############################## ##?????? | | # Y t #??????? | | # " #??????? | | + "T @ #??????? | | # h s ss #??????? | | # k k u hR s #??????? | | # #################+############ #??????? | | # #????????????????????????????# #??????? | | ## ##????????????????????????????#[######## | | ## #?????????????????????????????#=[%=* | | ### ^ #?????????????????????????????########## | | # #??????????????????????????????????????? | | + +??????????????????????????????????????? | | # #??????????????????????????????????????? | | # #??????????????????????????????????????? | | # #????????????#############?????????????? | | # #????????????# !// #?????????????? | | # #????????????# """ !/] #?????????????? | | # #????????????# """ !/] ##????????????? | | ### #????????????# """ #????????????? | | ??# #????????????# "" "" ??????????????? | | ??# #????????????# ! ""S"" ??????????????? | | ??# #????????????# """" #?????????????? | | ??# ################+########??????????????? | | ??# ^ #????????????????????? | | ??# + ??? ????????? ????? | | ###+##+#############"" # """ #?????" ""????? | | # ! #?????#"" # """ ]#????"" """ ??? | +----------------------------------------------------+ Best States ------------- Heat Dissipation 67 Coolant Potential 80 Energy Generation 41 Energy Capacity 850 Matter Stores 300 Matter Capacity 300 Sight Range 16 Robot Scan Range 16 Terrain Scan Density 10 Jamming Range 16 Armor Coverage 1200 Resistance: KI 30 Resistance: TH 10 Propulsion Shielding 33 Melee Speed Boost 20 Evasion (%) 55 Targeting Accuracy 8 Melee Accuracy 8 Core Analysis 6 Recoil Reduction 4 Energy Filtering 30 Kinecelleration 40 Force Boost 20 Item Schematics ----------------- Lgt. Nuclear Core | -9/Materials | Scanalyzed Recoil Stabilizer | -9/Materials | Scanalyzed Med. Armor Plating | -9/Materials | Scanalyzed Enh. Optical Array | -8/Storage | Hacked Imp. Cooling System | -7/Factory | Hacked Hvy. Linear Accelerator | -7/Factory | Scanalyzed Variable Charge Gun | -6/Factory | Hacked Adv. Cryofiber Web | -5/Extension | Hacked Robot Schematics ------------------ None Fabricated ------------ Nothing Repaired ---------- Imp. Heat Sink | 37% | -9/Materials Hrd. Medium Armor Plating | 70% | -8/Storage Beamcaster | 65% | -7/Factory Gatling Laser | 91% | -7/Factory | Corrupted Alien Tech Used ----------------- None Achievements -------------- Ambidextrous Challenges ------------ None Game ------ Seed TerrorSigixSuite Manual? 0 Play Time 03:31:46 Cumulative 187.9 hours Start 2025.07.12 @ 16:37:35 End 2025.07.12 @ 20:16:04 Sessions 1 Manual Loads 0 Difficulty Rogue Special Mode None Game No. 134 Rogue 134 Adventurer 0 Explorer 0 Win Type - Total 2 Types 2/0/0/0/0/0/0/0/0/0 Lore% 63 Gallery% 58 Achievement% 51 Wizard Run 0 Options --------- Layout 1 ASCII 0 Keyboard 0 Movement Mouse Keybinds 0 Fullscreen 1 Font 32/SmallcapsGlow Map View 50x35 Zoom Use 0% Tactical HUD 1 Map Filters NONE Filters NONE Steam 1 RUN: b2f9c6e1-aae7-4b36-add9-64fcb561f1f8